[Event "Titled Tuesday Blitz April 25 Late 2023"]
[White "Ghazarian, Kirk"]
[Black "Tworuszka, Michal"]
[WhiteFideId "30908604"]
[BlackFideId "1117858"]
[WhiteElo "2346"]
[BlackElo "2260"]
[Result "1-0"]
[Round "02"]
[TimeControl "180+2"]
[Date "2023.04.25"]
[WhiteClock "0:00:08"]
[BlackClock "0:00:14"]

1. d4 {[%clk 0:03:00]}  Nf6 {[%clk 0:02:59]} 2. Bf4 {[%clk 0:03:01]}  d5 {[%clk 0:02:52]} 3. Nf3 {[%clk 0:03:01]}  e6 {[%clk 0:02:52]} 4. e3 {[%clk 0:03:02]}  Bd6 {[%clk 0:02:52]} 5. c3 {[%clk 0:03:00]}  O-O {[%clk 0:02:50]} 6. Nbd2 {[%clk 0:02:59]}  c5 {[%clk 0:02:50]} 7. Ne5 {[%clk 0:02:58]}  Qc7 {[%clk 0:02:48]} 8. Bd3 {[%clk 0:02:56]}  Nbd7 {[%clk 0:02:48]} 9. Nxd7 {[%clk 0:02:53]}  Bxd7 {[%clk 0:02:46]} 10. Bxd6 {[%clk 0:02:47]}  Qxd6 {[%clk 0:02:45]} 11. f4 {[%clk 0:02:48]}  cxd4 {[%clk 0:02:42]} 12. cxd4 {[%clk 0:02:49]}  Qb6 {[%clk 0:02:40]} 13. Qb3 {[%clk 0:02:47]}  Rfc8 {[%clk 0:02:33]} 14. Ke2 {[%clk 0:02:40]}  Rc7 {[%clk 0:02:32]} 15. Rhc1 {[%clk 0:02:34]}  Rac8 {[%clk 0:02:32]} 16. Qxb6 {[%clk 0:02:30]}  axb6 {[%clk 0:02:32]} 17. Rxc7 {[%clk 0:02:31]}  Rxc7 {[%clk 0:02:32]} 18. h3 {[%clk 0:02:30]}  Kf8 {[%clk 0:02:22]} 19. g4 {[%clk 0:02:29]}  g6 {[%clk 0:02:15]} 20. Rg1 {[%clk 0:02:27]}  Ne8 {[%clk 0:02:14]} 21. h4 {[%clk 0:02:27]}  Nd6 {[%clk 0:02:14]} 22. h5 {[%clk 0:02:26]}  Bb5 {[%clk 0:02:14]} 23. Bxb5 {[%clk 0:02:24]}  Nxb5 {[%clk 0:02:14]} 24. Kd3 {[%clk 0:02:23]}  Nd6 {[%clk 0:02:10]} 25. h6 {[%clk 0:02:23]}  Ke7 {[%clk 0:02:09]} 26. a4 {[%clk 0:02:16]}  f6 {[%clk 0:02:09]} 27. Ra1 {[%clk 0:02:10]}  Nf7 {[%clk 0:02:00]} 28. Rh1 {[%clk 0:02:03]}  Rc8 {[%clk 0:01:59]} 29. Nf3 {[%clk 0:02:02]}  Rc4 {[%clk 0:01:52]} 30. b3 {[%clk 0:02:00]}  Rc8 {[%clk 0:01:48]} 31. g5 {[%clk 0:01:59]}  f5 {[%clk 0:01:42]} 32. Ra1 {[%clk 0:01:52]}  Ra8 {[%clk 0:01:40]} 33. Rc1 {[%clk 0:01:49]}  Kd7 {[%clk 0:01:40]} 34. Ra1 {[%clk 0:01:44]}  Ra7 {[%clk 0:01:39]} 35. b4 {[%clk 0:01:43]}  Ra8 {[%clk 0:01:39]} 36. a5 {[%clk 0:01:40]}  bxa5 {[%clk 0:01:38]} 37. bxa5 {[%clk 0:01:40]}  Ra6 {[%clk 0:01:38]} 38. Rb1 {[%clk 0:01:35]}  Kc7 {[%clk 0:01:35]} 39. Rb5 {[%clk 0:01:25]}  b6 {[%clk 0:01:34]} 40. axb6+ {[%clk 0:01:25]}  Rxb6 {[%clk 0:01:34]} 41. Ra5 {[%clk 0:01:23]}  Rb3+ {[%clk 0:01:33]} 42. Ke2 {[%clk 0:01:16]}  Rb2+ {[%clk 0:01:33]} 43. Kd1 {[%clk 0:01:11]}  Kb7 {[%clk 0:01:23]} 44. Ra3 {[%clk 0:01:00]}  Rf2 {[%clk 0:01:16]} 45. Nd2 {[%clk 0:00:53]}  Nd6 {[%clk 0:01:13]} 46. Ke1 {[%clk 0:00:43]}  Rh2 {[%clk 0:01:07]} 47. Rb3+ {[%clk 0:00:43]}  Kc7 {[%clk 0:01:06]} 48. Rc3+ {[%clk 0:00:39]}  Kb7 {[%clk 0:01:05]} 49. Nb3 {[%clk 0:00:29]}  Rh1+ {[%clk 0:01:01]} 50. Ke2 {[%clk 0:00:30]}  Rh2+ {[%clk 0:01:01]} 51. Kf1 {[%clk 0:00:28]}  Ne4 {[%clk 0:00:59]} 52. Nc5+ {[%clk 0:00:27]}  Nxc5 {[%clk 0:00:59]} 53. dxc5 {[%clk 0:00:26]}  Kc6 {[%clk 0:00:41]} 54. Rb3 {[%clk 0:00:26]}  Kxc5 {[%clk 0:00:38]} 55. Rb7 {[%clk 0:00:26]}  Kc4 {[%clk 0:00:37]} 56. Rxh7 {[%clk 0:00:25]}  Kd3 {[%clk 0:00:37]} 57. Kg1 {[%clk 0:00:21]}  Rh4 {[%clk 0:00:33]} 58. Kf2 {[%clk 0:00:17]}  Rh2+ {[%clk 0:00:28]} 59. Kg3 {[%clk 0:00:17]}  Rh5 {[%clk 0:00:27]} 60. Re7 {[%clk 0:00:17]}  Kxe3 {[%clk 0:00:25]} 61. Rxe6+ {[%clk 0:00:18]}  Kd2 {[%clk 0:00:22]} 62. Rxg6 {[%clk 0:00:18]}  d4 {[%clk 0:00:22]} 63. Rf6 {[%clk 0:00:15]}  d3 {[%clk 0:00:22]} 64. Rxf5 {[%clk 0:00:16]}  Ke3 {[%clk 0:00:22]} 65. Re5+ {[%clk 0:00:15]}  Kd4 {[%clk 0:00:22]} 66. Re8 {[%clk 0:00:15]}  d2 {[%clk 0:00:22]} 67. Rd8+ {[%clk 0:00:15]}  Ke3 {[%clk 0:00:22]} 68. Kg4 {[%clk 0:00:12]}  Rh1 {[%clk 0:00:20]} 69. Kf5 {[%clk 0:00:06]}  d1=Q {[%clk 0:00:15]} 70. Rxd1 {[%clk 0:00:07]}  Rxd1 {[%clk 0:00:16]} 71. h7 {[%clk 0:00:07]}  Rh1 {[%clk 0:00:14]} 72. g6 {[%clk 0:00:08]}  Rf1 {[%clk 0:00:14]} 73. h8=Q {[%clk 0:00:07]}  Rxf4+ {[%clk 0:00:15]} 74. Kg5 {[%clk 0:00:07]}  Re4 {[%clk 0:00:14]} 75. Qh3+ {[%clk 0:00:07]}  Kd4 {[%clk 0:00:14]} 76. Qd7+ {[%clk 0:00:08]}  Ke3 {[%clk 0:00:14]} 77. g7 {[%clk 0:00:08]} 1-0


[Site "https://www.chess.com"]

[Event "Titled Tuesday Blitz April 25 Late 2023"]
[White "Koziorowicz, Michal"]
[Black "Novikova, Galina"]
[WhiteFideId "21809194"]
[BlackFideId "4157095"]
[WhiteElo "2255"]
[BlackElo "1953"]
[Result "0-1"]
[Round "02"]
[TimeControl "180+2"]
[Date "2023.04.25"]
[WhiteClock "0:00:55"]
[BlackClock "0:00:57"]

1. e4 {[%clk 0:03:00]}  e6 {[%clk 0:02:59]} 2. b3 {[%clk 0:02:59]}  d5 {[%clk 0:03:00]} 3. Bb2 {[%clk 0:02:58]}  dxe4 {[%clk 0:03:00]} 4. Nc3 {[%clk 0:02:59]}  Nf6 {[%clk 0:03:01]} 5. Qe2 {[%clk 0:02:58]}  Nc6 {[%clk 0:03:01]} 6. Nxe4 {[%clk 0:02:57]}  Nd4 {[%clk 0:02:56]} 7. Nxf6+ {[%clk 0:02:57]}  Qxf6 {[%clk 0:02:57]} 8. Qe4 {[%clk 0:02:29]}  Nf3+ {[%clk 0:02:53]} 9. Nxf3 {[%clk 0:02:29]}  Qxb2 {[%clk 0:02:54]} 10. Bb5+ {[%clk 0:02:29]}  c6 {[%clk 0:01:45]} 11. Bxc6+ {[%clk 0:02:29]}  bxc6 {[%clk 0:01:46]} 12. Qxc6+ {[%clk 0:02:29]}  Kd8 {[%clk 0:01:45]} 13. O-O {[%clk 0:02:29]}  Rb8 {[%clk 0:01:42]} 14. Rfe1 {[%clk 0:02:26]}  Bb7 {[%clk 0:01:36]} 15. Qb5 {[%clk 0:02:23]}  Bd6 {[%clk 0:01:27]} 16. Ng5 {[%clk 0:01:44]}  Qf6 {[%clk 0:01:01]} 17. Re3 {[%clk 0:01:26]}  Bd5 {[%clk 0:00:58]} 18. Qa6 {[%clk 0:00:55]}  Qxa1+ {[%clk 0:00:57]} 0-1


[Site "https://www.chess.com"]

[Event "Titled Tuesday Blitz April 25 Late 2023"]
[White "Moral Garcia, Serafin"]
[Black "Barria Santos, Jose Guilherme"]
[WhiteFideId "2201925"]
[BlackFideId "1939300"]
[WhiteElo "2274"]
[BlackElo "2266"]
[Result "0-1"]
[Round "02"]
[TimeControl "180+2"]
[Date "2023.04.25"]
[WhiteClock "0:00:13"]
[BlackClock "0:00:12"]

1. c4 {[%clk 0:02:58]}  c5 {[%clk 0:03:00]} 2. Nc3 {[%clk 0:02:57]}  d6 {[%clk 0:03:01]} 3. g3 {[%clk 0:02:57]}  Nc6 {[%clk 0:03:00]} 4. Bg2 {[%clk 0:02:57]}  g6 {[%clk 0:02:59]} 5. a3 {[%clk 0:02:57]}  Bg7 {[%clk 0:02:59]} 6. Rb1 {[%clk 0:02:58]}  Qd7 {[%clk 0:02:56]} 7. b4 {[%clk 0:02:56]}  Rb8 {[%clk 0:02:53]} 8. e3 {[%clk 0:02:53]}  Ne5 {[%clk 0:02:52]} 9. Qe2 {[%clk 0:02:43]}  b6 {[%clk 0:02:45]} 10. f4 {[%clk 0:02:42]}  Nc6 {[%clk 0:02:44]} 11. Nf3 {[%clk 0:02:39]}  Bb7 {[%clk 0:02:43]} 12. O-O {[%clk 0:02:34]}  e6 {[%clk 0:02:43]} 13. Ne1 {[%clk 0:02:29]}  Nge7 {[%clk 0:02:31]} 14. Nc2 {[%clk 0:02:26]}  O-O {[%clk 0:02:31]} 15. Bb2 {[%clk 0:02:25]}  d5 {[%clk 0:02:19]} 16. d3 {[%clk 0:02:18]}  Rfd8 {[%clk 0:02:15]} 17. Rbd1 {[%clk 0:02:16]}  d4 {[%clk 0:02:01]} 18. Ne4 {[%clk 0:02:03]}  cxb4 {[%clk 0:01:21]} 19. axb4 {[%clk 0:02:02]}  dxe3 {[%clk 0:01:14]} 20. Bxg7 {[%clk 0:02:01]}  Kxg7 {[%clk 0:01:15]} 21. Qxe3 {[%clk 0:01:48]}  Nf5 {[%clk 0:01:14]} 22. Qc1 {[%clk 0:01:42]}  Ncd4 {[%clk 0:01:05]} 23. Rfe1 {[%clk 0:01:39]}  Nxc2 {[%clk 0:01:03]} 24. Qxc2 {[%clk 0:01:37]}  Qd4+ {[%clk 0:01:04]} 25. Qf2 {[%clk 0:01:35]}  a6 {[%clk 0:01:03]} 26. g4 {[%clk 0:01:24]}  Qxf2+ {[%clk 0:00:59]} 27. Kxf2 {[%clk 0:01:23]}  Nd4 {[%clk 0:00:55]} 28. Rd2 {[%clk 0:01:07]}  h6 {[%clk 0:00:42]} 29. h3 {[%clk 0:01:04]}  Nb3 {[%clk 0:00:39]} 30. Rdd1 {[%clk 0:01:00]}  a5 {[%clk 0:00:38]} 31. bxa5 {[%clk 0:00:34]}  bxa5 {[%clk 0:00:39]} 32. Nc3 {[%clk 0:00:35]}  Bxg2 {[%clk 0:00:40]} 33. Kxg2 {[%clk 0:00:35]}  Nd4 {[%clk 0:00:39]} 34. Rb1 {[%clk 0:00:33]}  Rb3 {[%clk 0:00:33]} 35. Rxb3 {[%clk 0:00:32]}  Nxb3 {[%clk 0:00:34]} 36. Rd1 {[%clk 0:00:33]}  Nc5 {[%clk 0:00:33]} 37. d4 {[%clk 0:00:32]}  Nb3 {[%clk 0:00:32]} 38. d5 {[%clk 0:00:32]}  exd5 {[%clk 0:00:33]} 39. cxd5 {[%clk 0:00:31]}  Kf8 {[%clk 0:00:30]} 40. Kf3 {[%clk 0:00:30]}  Ke7 {[%clk 0:00:26]} 41. Ke3 {[%clk 0:00:29]}  Rc8 {[%clk 0:00:24]} 42. Ne4 {[%clk 0:00:28]}  a4 {[%clk 0:00:21]} 43. d6+ {[%clk 0:00:26]}  Kd8 {[%clk 0:00:21]} 44. Nd2 {[%clk 0:00:18]}  Rc3+ {[%clk 0:00:17]} 45. Ke4 {[%clk 0:00:19]}  f5+ {[%clk 0:00:13]} 46. gxf5 {[%clk 0:00:18]}  gxf5+ {[%clk 0:00:14]} 47. Kxf5 {[%clk 0:00:17]}  Rd3 {[%clk 0:00:15]} 48. Rg1 {[%clk 0:00:17]}  Nxd2 {[%clk 0:00:14]} 49. Ke6 {[%clk 0:00:16]}  Re3+ {[%clk 0:00:15]} 50. Kd5 {[%clk 0:00:17]}  a3 {[%clk 0:00:15]} 51. Rg8+ {[%clk 0:00:16]}  Kd7 {[%clk 0:00:16]} 52. Rg7+ {[%clk 0:00:16]}  Ke8 {[%clk 0:00:15]} 53. Rg8+ {[%clk 0:00:16]}  Kf7 {[%clk 0:00:16]} 54. Ra8 {[%clk 0:00:15]}  Rd3+ {[%clk 0:00:15]} 55. Kc6 {[%clk 0:00:15]}  Rc3+ {[%clk 0:00:10]} 56. Kd5 {[%clk 0:00:15]}  Rd3+ {[%clk 0:00:10]} 57. Kc6 {[%clk 0:00:15]}  Nc4 {[%clk 0:00:10]} 58. d7 {[%clk 0:00:15]}  Rxd7 {[%clk 0:00:09]} 59. Ra4 {[%clk 0:00:13]}  Rd4 {[%clk 0:00:08]} 60. f5 {[%clk 0:00:12]}  Kf6 {[%clk 0:00:08]} 61. Kc5 {[%clk 0:00:11]}  Rh4 {[%clk 0:00:09]} 62. Kb5 {[%clk 0:00:11]}  Nd6+ {[%clk 0:00:08]} 63. Ka5 {[%clk 0:00:12]}  Rxa4+ {[%clk 0:00:09]} 64. Kxa4 {[%clk 0:00:12]}  a2 {[%clk 0:00:10]} 65. Kb4 {[%clk 0:00:12]}  a1=Q {[%clk 0:00:11]} 66. Kc5 {[%clk 0:00:13]}  Qe5+ {[%clk 0:00:12]} 0-1


[Site "https://www.chess.com"]

[Event "Titled Tuesday Blitz April 25 Late 2023"]
[White "Babazada, Khazar"]
[Black "Melikhov, Evgeny V."]
[WhiteFideId "13413554"]
[BlackFideId "4122046"]
[WhiteElo "2351"]
[BlackElo "2158"]
[Result "1-0"]
[Round "02"]
[TimeControl "180+2"]
[Date "2023.04.25"]
[WhiteClock "0:01:56"]
[BlackClock "0:00:01"]

1. e4 {[%clk 0:03:00]}  e5 {[%clk 0:02:59]} 2. Nf3 {[%clk 0:02:57]}  Nc6 {[%clk 0:02:59]} 3. Bb5 {[%clk 0:02:57]}  a6 {[%clk 0:02:59]} 4. Ba4 {[%clk 0:02:55]}  Nf6 {[%clk 0:02:59]} 5. d4 {[%clk 0:02:54]}  exd4 {[%clk 0:02:53]} 6. O-O {[%clk 0:02:53]}  d6 {[%clk 0:02:39]} 7. Nxd4 {[%clk 0:02:50]}  Bd7 {[%clk 0:02:39]} 8. Nc3 {[%clk 0:02:50]}  Be7 {[%clk 0:02:38]} 9. Nf5 {[%clk 0:02:44]}  O-O {[%clk 0:02:34]} 10. Nxe7+ {[%clk 0:02:38]}  Qxe7 {[%clk 0:02:34]} 11. Bg5 {[%clk 0:02:37]}  Qe5 {[%clk 0:01:44]} 12. Bxf6 {[%clk 0:02:33]}  Qxf6 {[%clk 0:01:42]} 13. Nd5 {[%clk 0:02:34]}  Qd8 {[%clk 0:01:42]} 14. c3 {[%clk 0:02:35]}  Ne7 {[%clk 0:01:30]} 15. Bxd7 {[%clk 0:02:35]}  Qxd7 {[%clk 0:01:30]} 16. Ne3 {[%clk 0:02:29]}  Qe6 {[%clk 0:01:26]} 17. Qd3 {[%clk 0:02:28]}  Rad8 {[%clk 0:01:22]} 18. Rae1 {[%clk 0:02:28]}  d5 {[%clk 0:01:11]} 19. exd5 {[%clk 0:02:22]}  Nxd5 {[%clk 0:01:11]} 20. Nc4 {[%clk 0:02:19]}  Nf4 {[%clk 0:00:50]} 21. Rxe6 {[%clk 0:02:17]}  Nxd3 {[%clk 0:00:46]} 22. Re7 {[%clk 0:02:14]}  b5 {[%clk 0:00:43]} 23. Ne3 {[%clk 0:02:14]}  Nxb2 {[%clk 0:00:42]} 24. Rxc7 {[%clk 0:02:14]}  Rc8 {[%clk 0:00:35]} 25. Ra7 {[%clk 0:02:14]}  Nc4 {[%clk 0:00:29]} 26. Nd5 {[%clk 0:02:12]}  Ra8 {[%clk 0:00:29]} 27. Ne7+ {[%clk 0:02:08]}  Kh8 {[%clk 0:00:28]} 28. Rxa8 {[%clk 0:02:09]}  Rxa8 {[%clk 0:00:28]} 29. Rd1 {[%clk 0:02:10]}  g6 {[%clk 0:00:26]} 30. Rd7 {[%clk 0:02:08]}  Kg7 {[%clk 0:00:25]} 31. g3 {[%clk 0:02:08]}  Re8 {[%clk 0:00:20]} 32. Ra7 {[%clk 0:02:06]}  a5 {[%clk 0:00:20]} 33. h4 {[%clk 0:02:04]}  h5 {[%clk 0:00:18]} 34. Nc6 {[%clk 0:02:03]}  b4 {[%clk 0:00:15]} 35. cxb4 {[%clk 0:02:00]}  axb4 {[%clk 0:00:15]} 36. Nxb4 {[%clk 0:02:01]}  Re2 {[%clk 0:00:14]} 37. Nd3 {[%clk 0:01:59]}  Rd2 {[%clk 0:00:12]} 38. Nc5 {[%clk 0:01:57]}  Ne5 {[%clk 0:00:10]} 39. Ne6+ {[%clk 0:01:58]}  Kf6 {[%clk 0:00:10]} 40. Ng5 {[%clk 0:01:58]}  Rd1+ {[%clk 0:00:06]} 41. Kg2 {[%clk 0:01:57]}  Ra1 {[%clk 0:00:07]} 42. f4 {[%clk 0:01:56]}  Kf5 {[%clk 0:00:01]} 43. fxe5 {[%clk 0:01:56]} 1-0


[Site "https://www.chess.com"]

[Event "Titled Tuesday Blitz April 25 Late 2023"]
[White "Figorito, Nick"]
[Black "Bartel, Mateusz"]
[WhiteFideId "30923689"]
[BlackFideId "1112635"]
[WhiteElo "2036"]
[BlackElo "2521"]
[Result "0-1"]
[Round "02"]
[TimeControl "180+2"]
[Date "2023.04.25"]
[WhiteClock "0:00:12"]
[BlackClock "0:00:14"]

1. Nf3 {[%clk 0:03:00]}  c5 {[%clk 0:02:57]} 2. g3 {[%clk 0:03:01]}  Nc6 {[%clk 0:02:56]} 3. d4 {[%clk 0:03:01]}  cxd4 {[%clk 0:02:56]} 4. Nxd4 {[%clk 0:03:02]}  h5 {[%clk 0:02:53]} 5. h4 {[%clk 0:02:58]}  g6 {[%clk 0:02:49]} 6. Bg2 {[%clk 0:02:58]}  Bg7 {[%clk 0:02:50]} 7. Nxc6 {[%clk 0:02:57]}  dxc6 {[%clk 0:02:49]} 8. Qxd8+ {[%clk 0:02:57]}  Kxd8 {[%clk 0:02:50]} 9. c4 {[%clk 0:02:57]}  e5 {[%clk 0:02:49]} 10. Nc3 {[%clk 0:02:55]}  Be6 {[%clk 0:02:49]} 11. b3 {[%clk 0:02:53]}  Kc7 {[%clk 0:02:45]} 12. Bb2 {[%clk 0:02:53]}  f5 {[%clk 0:02:43]} 13. O-O {[%clk 0:02:46]}  Rd8 {[%clk 0:02:41]} 14. Rfd1 {[%clk 0:02:46]}  Nf6 {[%clk 0:02:04]} 15. Na4 {[%clk 0:02:42]}  Nd7 {[%clk 0:02:02]} 16. Rd2 {[%clk 0:02:36]}  Nb6 {[%clk 0:01:48]} 17. Rxd8 {[%clk 0:02:10]}  Rxd8 {[%clk 0:01:48]} 18. Nc5 {[%clk 0:02:10]}  Bf7 {[%clk 0:01:45]} 19. Nd3 {[%clk 0:02:09]}  Nd7 {[%clk 0:01:43]} 20. f4 {[%clk 0:02:03]}  Re8 {[%clk 0:01:41]} 21. Rd1 {[%clk 0:01:39]}  Bf6 {[%clk 0:01:38]} 22. e3 {[%clk 0:01:36]}  a5 {[%clk 0:01:27]} 23. Kf2 {[%clk 0:01:24]}  e4 {[%clk 0:01:25]} 24. Bxf6 {[%clk 0:01:22]}  Nxf6 {[%clk 0:01:23]} 25. Ne5 {[%clk 0:01:20]}  Ng4+ {[%clk 0:01:06]} 26. Nxg4 {[%clk 0:01:19]}  hxg4 {[%clk 0:01:07]} 27. Ke1 {[%clk 0:00:53]}  a4 {[%clk 0:00:38]} 28. Kd2 {[%clk 0:00:46]}  axb3 {[%clk 0:00:37]} 29. axb3 {[%clk 0:00:47]}  Ra8 {[%clk 0:00:37]} 30. Rc1 {[%clk 0:00:45]}  Ra2+ {[%clk 0:00:36]} 31. Rc2 {[%clk 0:00:46]}  Ra3 {[%clk 0:00:36]} 32. Kc3 {[%clk 0:00:46]}  Ra1 {[%clk 0:00:36]} 33. Re2 {[%clk 0:00:40]}  c5 {[%clk 0:00:34]} 34. Kb2 {[%clk 0:00:40]}  Rg1 {[%clk 0:00:33]} 35. Kc3 {[%clk 0:00:35]}  Be6 {[%clk 0:00:33]} 36. Kb2 {[%clk 0:00:35]}  Bd7 {[%clk 0:00:33]} 37. Kc3 {[%clk 0:00:35]}  Bc6 {[%clk 0:00:34]} 38. Kb2 {[%clk 0:00:35]}  b5 {[%clk 0:00:34]} 39. Kc3 {[%clk 0:00:32]}  Kb6 {[%clk 0:00:33]} 40. Kb2 {[%clk 0:00:16]}  Rd1 {[%clk 0:00:32]} 41. Kc2 {[%clk 0:00:16]}  Rd3 {[%clk 0:00:20]} 42. Bf1 {[%clk 0:00:16]}  bxc4 {[%clk 0:00:20]} 43. bxc4 {[%clk 0:00:16]}  Ba4+ {[%clk 0:00:21]} 44. Kb1 {[%clk 0:00:13]}  Ka5 {[%clk 0:00:21]} 45. Ka2 {[%clk 0:00:07]}  Bb3+ {[%clk 0:00:20]} 46. Kb2 {[%clk 0:00:07]}  Kb4 {[%clk 0:00:20]} 47. Rh2 {[%clk 0:00:05]}  Rxe3 {[%clk 0:00:20]} 48. h5 {[%clk 0:00:06]}  gxh5 {[%clk 0:00:20]} 49. Rxh5 {[%clk 0:00:06]}  Rf3 {[%clk 0:00:20]} 50. Rxf5 {[%clk 0:00:04]}  Rf2+ {[%clk 0:00:20]} 51. Kc1 {[%clk 0:00:04]}  Rxf1+ {[%clk 0:00:20]} 52. Kd2 {[%clk 0:00:04]}  Rf3 {[%clk 0:00:20]} 53. Re5 {[%clk 0:00:04]}  Rxg3 {[%clk 0:00:18]} 54. Rxe4 {[%clk 0:00:04]}  Rf3 {[%clk 0:00:18]} 55. f5 {[%clk 0:00:04]}  g3 {[%clk 0:00:18]} 56. Rg4 {[%clk 0:00:05]}  Bxc4 {[%clk 0:00:18]} 57. f6 {[%clk 0:00:05]}  Kb5 {[%clk 0:00:18]} 58. Rg7 {[%clk 0:00:03]}  Bd5 {[%clk 0:00:17]} 59. Kc2 {[%clk 0:00:02]}  Rf2+ {[%clk 0:00:16]} 60. Kc3 {[%clk 0:00:02]}  g2 {[%clk 0:00:17]} 61. f7 {[%clk 0:00:02]}  Bxf7 {[%clk 0:00:17]} 62. Rg3 {[%clk 0:00:02]}  Bd5 {[%clk 0:00:15]} 63. Rg5 {[%clk 0:00:02]}  Be4 {[%clk 0:00:12]} 64. Rg4 {[%clk 0:00:02]}  Bf3 {[%clk 0:00:11]} 65. Rg3 {[%clk 0:00:03]}  Rf1 {[%clk 0:00:11]} 66. Rg5 {[%clk 0:00:03]}  g1=Q {[%clk 0:00:11]} 67. Rxg1 {[%clk 0:00:04]}  Rxg1 {[%clk 0:00:12]} 68. Kd2 {[%clk 0:00:05]}  Bd5 {[%clk 0:00:12]} 69. Ke3 {[%clk 0:00:06]}  Rg3+ {[%clk 0:00:12]} 70. Kd2 {[%clk 0:00:07]}  Rf3 {[%clk 0:00:13]} 71. Kc2 {[%clk 0:00:08]}  Kb4 {[%clk 0:00:13]} 72. Kd2 {[%clk 0:00:09]}  c4 {[%clk 0:00:14]} 73. Kc2 {[%clk 0:00:10]}  Be4+ {[%clk 0:00:14]} 74. Kc1 {[%clk 0:00:10]}  Rb3 {[%clk 0:00:14]} 75. Kd2 {[%clk 0:00:10]}  Rd3+ {[%clk 0:00:14]} 76. Kc2 {[%clk 0:00:11]}  Rd4+ {[%clk 0:00:13]} 77. Kb2 {[%clk 0:00:12]}  Rd2+ {[%clk 0:00:12]} 78. Kc1 {[%clk 0:00:12]}  Rc2+ {[%clk 0:00:13]} 79. Kb1 {[%clk 0:00:13]}  Kb3 {[%clk 0:00:13]} 80. Ka1 {[%clk 0:00:12]}  Rc1# {[%clk 0:00:14]} 0-1


[Site "https://www.chess.com"]

[Event "Titled Tuesday Blitz April 25 Late 2023"]
[White "Klukin, Kirill"]
[Black "Papp, Petra"]
[WhiteFideId "24199273"]
[BlackFideId "739049"]
[WhiteElo "2344"]
[BlackElo "2259"]
[Result "1-0"]
[Round "02"]
[TimeControl "180+2"]
[Date "2023.04.25"]
[WhiteClock "0:00:34"]
[BlackClock "0:00:02"]

1. f4 {[%clk 0:03:00]}  d5 {[%clk 0:02:51]} 2. Nf3 {[%clk 0:03:00]}  Nf6 {[%clk 0:02:48]} 3. g3 {[%clk 0:03:01]}  g6 {[%clk 0:02:48]} 4. Bg2 {[%clk 0:03:02]}  Bg7 {[%clk 0:02:49]} 5. O-O {[%clk 0:03:02]}  O-O {[%clk 0:02:49]} 6. d3 {[%clk 0:03:03]}  c5 {[%clk 0:02:47]} 7. Nc3 {[%clk 0:03:04]}  d4 {[%clk 0:02:46]} 8. Na4 {[%clk 0:03:04]}  Qc7 {[%clk 0:02:38]} 9. c4 {[%clk 0:03:04]}  Nbd7 {[%clk 0:02:28]} 10. a3 {[%clk 0:03:04]}  Nb6 {[%clk 0:02:26]} 11. b4 {[%clk 0:03:03]}  Nxa4 {[%clk 0:02:23]} 12. Qxa4 {[%clk 0:03:04]}  Bd7 {[%clk 0:02:22]} 13. Qc2 {[%clk 0:03:04]}  Ng4 {[%clk 0:02:10]} 14. Rb1 {[%clk 0:03:03]}  b6 {[%clk 0:01:53]} 15. h3 {[%clk 0:02:36]}  Ne3 {[%clk 0:01:27]} 16. Bxe3 {[%clk 0:02:32]}  dxe3 {[%clk 0:01:25]} 17. Qc1 {[%clk 0:02:33]}  Bd4 {[%clk 0:01:19]} 18. bxc5 {[%clk 0:02:22]}  bxc5 {[%clk 0:01:07]} 19. Nxd4 {[%clk 0:02:17]}  cxd4 {[%clk 0:00:50]} 20. Qb2 {[%clk 0:02:17]}  Rad8 {[%clk 0:00:45]} 21. Qxd4 {[%clk 0:02:11]}  Bxh3 {[%clk 0:00:42]} 22. Qxe3 {[%clk 0:02:12]}  Bxg2 {[%clk 0:00:42]} 23. Kxg2 {[%clk 0:02:13]}  a5 {[%clk 0:00:39]} 24. Rb5 {[%clk 0:02:11]}  e6 {[%clk 0:00:36]} 25. Rfb1 {[%clk 0:02:11]}  Rfe8 {[%clk 0:00:32]} 26. Rb7 {[%clk 0:02:08]}  Qd6 {[%clk 0:00:32]} 27. Qa7 {[%clk 0:01:46]}  Rf8 {[%clk 0:00:27]} 28. Qxa5 {[%clk 0:01:42]}  h6 {[%clk 0:00:27]} 29. R1b3 {[%clk 0:01:28]}  Rde8 {[%clk 0:00:24]} 30. Qe5 {[%clk 0:01:28]}  Qc6+ {[%clk 0:00:23]} 31. Qe4 {[%clk 0:01:28]}  Qd6 {[%clk 0:00:21]} 32. R7b6 {[%clk 0:01:25]}  Qc7 {[%clk 0:00:19]} 33. R6b5 {[%clk 0:01:23]}  h5 {[%clk 0:00:17]} 34. a4 {[%clk 0:01:12]}  Ra8 {[%clk 0:00:10]} 35. R3b4 {[%clk 0:01:12]}  Ra6 {[%clk 0:00:04]} 36. Rb7 {[%clk 0:01:07]}  Qd6 {[%clk 0:00:04]} 37. Qe3 {[%clk 0:00:47]}  Rfa8 {[%clk 0:00:03]} 38. R7b6 {[%clk 0:00:47]}  Rxb6 {[%clk 0:00:03]} 39. Rxb6 {[%clk 0:00:47]}  Qd7 {[%clk 0:00:03]} 40. Qe5 {[%clk 0:00:44]}  Qxa4 {[%clk 0:00:03]} 41. Rb8+ {[%clk 0:00:44]}  Rxb8 {[%clk 0:00:03]} 42. Qxb8+ {[%clk 0:00:45]}  Kg7 {[%clk 0:00:03]} 43. Qe5+ {[%clk 0:00:45]}  Kg8 {[%clk 0:00:03]} 44. Qe4 {[%clk 0:00:45]}  Qc2 {[%clk 0:00:03]} 45. Qa8+ {[%clk 0:00:43]}  Kg7 {[%clk 0:00:03]} 46. Qf3 {[%clk 0:00:44]}  Qc3 {[%clk 0:00:03]} 47. Qe3 {[%clk 0:00:44]}  Kg8 {[%clk 0:00:03]} 48. Kf2 {[%clk 0:00:42]}  Qc2 {[%clk 0:00:03]} 49. c5 {[%clk 0:00:38]}  Kg7 {[%clk 0:00:02]} 50. d4 {[%clk 0:00:37]}  f6 {[%clk 0:00:02]} 51. Qxe6 {[%clk 0:00:37]}  Qc3 {[%clk 0:00:02]} 52. Qe7+ {[%clk 0:00:37]}  Kh6 {[%clk 0:00:02]} 53. Qf8+ {[%clk 0:00:34]}  Kh7 {[%clk 0:00:02]} 54. Qxf6 {[%clk 0:00:35]}  h4 {[%clk 0:00:01]} 55. Qxh4+ {[%clk 0:00:35]}  Kg7 {[%clk 0:00:01]} 56. Qe7+ {[%clk 0:00:36]}  Kh6 {[%clk 0:00:02]} 57. Qg5+ {[%clk 0:00:36]}  Kg7 {[%clk 0:00:02]} 58. Qe5+ {[%clk 0:00:36]}  Kh7 {[%clk 0:00:02]} 59. Qe3 {[%clk 0:00:37]}  Qc2 {[%clk 0:00:02]} 60. d5 {[%clk 0:00:36]}  Qd1 {[%clk 0:00:02]} 61. d6 {[%clk 0:00:34]}  Qh1 {[%clk 0:00:02]} 62. Qe7+ {[%clk 0:00:34]}  Kh6 {[%clk 0:00:02]} 63. Qh4+ {[%clk 0:00:34]} 1-0


[Site "https://www.chess.com"]